bitfinex/quotes_BTCUSD_20251202
["timestamp","ask_amount","ask_price","bid_price","bid_amount"]
[1764677501255,0.01367,87566.0,87565.0,0.0116147]
[1764677501656,0.01367,87566.0,87565.0,0.0001147]
[1764677502403,0.01367,87566.0,87565.0,0.22851645]
[1764677502612,0.001,87566.0,87565.0,0.22851645]
[1764677503426,0.001,87566.0,87565.0,0.03445487]
[1764677503622,0.001,87566.0,87565.0,0.24001645]
[1764677504934,0.01141969,87568.0,87567.0,0.0115]
[1764677505236,0.01141904,87573.0,87572.0,0.0115]
[1764677505396,0.23979996,87573.0,87572.0,0.0115]
[1764677506301,0.24079996,87573.0,87572.0,0.0115]
[1764677506583,0.22838397,87572.0,87571.0,0.0115]
[1764677506788,0.001,87573.0,87572.0,0.0115]
[1764677506968,0.001,87573.0,87572.0,0.2398835]
[1764677508019,0.001,87573.0,87572.0,0.0115]
[1764677508461,0.0114193,87571.0,87570.0,0.0115]
[1764677508657,0.22839915,87566.0,87565.0,0.0001147]
[1764677508861,0.01267,87566.0,87565.0,0.0181947]
[1764677510050,0.24106915,87566.0,87565.0,0.0191947]
[1764677510329,0.01267,87566.0,87565.0,0.0191947]
[1764677510929,0.01141969,87568.0,87566.0,0.22839859]
[1764677511253,0.22839421,87568.0,87566.0,0.22839859]
[1764677511448,0.22839702,87567.0,87565.0,0.03061478]
[1764677511654,0.22839702,87567.0,87565.0,0.0181947]
[1764677511858,0.22839915,87566.0,87565.0,0.0181947]
[1764677512060,0.22839702,87567.0,87565.0,0.0181947]
[1764677512262,0.23981383,87568.0,87565.0,0.0181947]
[1764677512468,0.2283968,87567.0,87565.0,0.0181947]
[1764677512683,0.01141956,87569.0,87566.0,0.22839703]
[1764677512899,0.23981316,87569.0,87568.0,0.0115]
[1764677513546,0.0114193,87571.0,87567.0,0.22839589]
[1764677513877,0.22838871,87570.0,87569.0,0.0115]
[1764677514066,0.2398063,87571.0,87570.0,0.0115]
[1764677515635,0.2398021,87573.0,87572.0,0.0115]
[1764677515844,0.23981072,87570.0,87569.0,0.0115]
[1764677517078,0.22838817,87571.0,87569.0,0.23989132]
[1764677517280,0.01141878,87575.0,87571.0,0.23980313]
[1764677517440,0.0114193,87571.0,87566.0,0.01141995]
[1764677517651,0.22838905,87570.0,87568.0,0.22839252]
[1764677517964,0.2283835,87572.0,87569.0,0.2283912]
[1764677518163,0.001,87573.0,87572.0,0.2283835]
[1764677518397,0.001,87573.0,87571.0,0.22838482]
[1764677518611,0.22838102,87573.0,87570.0,0.22838857]
[1764677519486,0.22838102,87573.0,87570.0,0.239808]
[1764677520480,0.22838448,87572.0,87570.0,0.01141943]
[1764677520661,0.001,87573.0,87572.0,0.2283835]
[1764677520862,0.26469782,87589.0,87579.0,0.0115]
[1764677521064,0.24102456,87584.0,87579.0,0.0115]
[1764677521277,0.23976713,87585.0,87584.0,0.0115]
[1764677521466,0.01141748,87585.0,87584.0,0.0115]
[1764677521819,0.01141748,87585.0,87583.0,0.0115]
[1764677521820,0.23976708,87585.0,87583.0,0.0115]
[1764677522022,0.22835221,87584.0,87583.0,0.0115]
[1764677523389,0.24176708,87585.0,87583.0,0.0115]
[1764677523606,0.002,87585.0,87583.0,0.23985387]
[1764677523792,0.2397646,87586.0,87583.0,0.23985387]
[1764677524002,0.22835118,87585.0,87583.0,0.0115]
[1764677524320,0.2283498,87585.0,87583.0,0.23985372]
[1764677524730,0.2293498,87585.0,87583.0,0.23985372]
[1764677525150,0.001,87585.0,87583.0,0.0115]
[1764677525640,0.22934984,87585.0,87583.0,0.22835278]
[1764677525839,0.22934984,87585.0,87584.0,0.0115]
[1764677526040,0.22934984,87585.0,87582.0,0.23977055]
[1764677526799,0.01141813,87580.0,87574.0,0.2397967]
[1764677527000,0.23978101,87580.0,87576.0,0.23979092]
[1764677527237,0.23978101,87580.0,87577.0,0.22837045]
[1764677527238,0.01141813,87580.0,87577.0,0.22837045]
[1764677527459,0.23978258,87580.0,87577.0,0.22837045]
[1764677527693,0.23977543,87582.0,87580.0,0.22836263]
[1764677527835,0.24099498,87583.0,87580.0,0.22836263]
[1764677528041,0.01627,87581.0,87577.0,0.23978897]
[1764677528286,0.01627,87581.0,87577.0,0.22836897]
[1764677528496,0.02356,87580.0,87577.0,0.22836897]
[1764677528705,0.26334274,87580.0,87575.0,0.01808]
[1764677528930,0.26334274,87580.0,87575.0,0.02949878]
[1764677529098,0.26334274,87580.0,87576.0,0.01141865]
[1764677529299,0.02356,87580.0,87578.0,0.2283658]
[1764677529502,0.25192277,87580.0,87577.0,0.23978709]
[1764677529799,0.02356,87580.0,87578.0,0.2283666]
[1764677530405,0.2519227,87580.0,87577.0,0.23978709]
[1764677530616,0.2397835,87579.0,87574.0,0.25129606]
[1764677530822,0.011418,87581.0,87575.0,0.01808]
[1764677531149,0.01264,87583.0,87580.0,0.23978076]
[1764677531362,0.01264,87583.0,87581.0,0.22835887]
[1764677531545,0.02405774,87583.0,87580.0,0.23978052]
[1764677531841,0.22834354,87588.0,87584.0,0.01141761]
[1764677532192,0.22834482,87587.0,87585.0,0.0115]
[1764677532606,0.22834482,87587.0,87584.0,0.23976499]
[1764677534495,0.22934482,87587.0,87584.0,0.23976499]
[1764677534842,0.23976466,87586.0,87583.0,0.01141774]
[1764677535480,0.23976466,87586.0,87583.0,0.23977017]
[1764677535881,0.001,87587.0,87585.0,0.22834935]
[1764677536086,0.001,87587.0,87584.0,0.23976982]
[1764677536087,0.22934495,87587.0,87584.0,0.23976982]
[1764677536286,0.22834968,87585.0,87583.0,0.23976769]
[1764677536490,0.2397665,87586.0,87583.0,0.23976769]
[1764677536824,0.23976169,87587.0,87586.0,0.0115]
[1764677537215,0.239761,87588.0,87587.0,0.0115]
[1764677537425,0.01141669,87591.0,87587.0,0.2512613]
[1764677537647,0.23975129,87591.0,87588.0,0.22833951]
[1764677537838,0.01141643,87593.0,87589.0,0.0115]
[1764677538033,0.01141643,87593.0,87589.0,0.02291695]
[1764677538292,0.01264,87597.0,87594.0,0.0114163]
[1764677538500,0.24096069,87597.0,87594.0,0.23974172]
[1764677538709,0.02405591,87597.0,87594.0,0.23974172]
[1764677539119,0.22832176,87596.0,87593.0,0.01141643]
[1764677539332,0.22832176,87596.0,87593.0,0.23974446]
[1764677539539,0.22832176,87596.0,87593.0,0.0001147]
[1764677539540,0.2397378,87596.0,87593.0,0.0001147]
[1764677539752,0.00022,87598.0,87597.0,0.22831832]
[1764677539959,0.00022,87598.0,87597.0,0.23981832]
[1764677540999,0.00122,87598.0,87597.0,0.23981832]
[1764677541877,0.00022,87598.0,87597.0,0.23981832]
[1764677543186,0.00022,87598.0,87597.0,0.24181832]
[1764677543369,0.00022,87598.0,87597.0,0.24081832]
[1764677543810,0.00022,87598.0,87597.0,0.24281832]
[1764677550925,0.01649,87598.0,87597.0,0.02104]
[1764677551207,0.26836571,87598.0,87597.0,0.003]
[1764677552223,0.26836571,87598.0,87597.0,0.002]
[1764677552379,0.22832614,87594.0,87593.0,0.0001147]
[1764677552587,0.24493614,87594.0,87593.0,0.0001147]
[1764677552785,0.26827614,87594.0,87593.0,0.0001147]
[1764677555206,0.22832614,87594.0,87593.0,0.0001147]
[1764677556044,0.00022,87598.0,87596.0,0.0115]
[1764677556195,0.22853576,87598.0,87596.0,0.0115]
[1764677556665,0.22831832,87597.0,87596.0,0.0115]
[1764677556949,0.22832614,87594.0,87593.0,0.0001147]
[1764677557158,0.24405614,87594.0,87593.0,0.0001147]
[1764677557367,0.26821614,87594.0,87593.0,0.0001147]
[1764677561793,0.01573,87594.0,87593.0,0.0001147]
[1764677561996,0.23974179,87596.0,87593.0,0.22844338]
[1764677562162,0.22831891,87597.0,87594.0,0.22832562]
[1764677562356,0.23995154,87598.0,87595.0,0.22832302]
[1764677562555,0.23995286,87598.0,87597.0,0.0115]
[1764677562765,0.00022,87598.0,87597.0,0.0115]
[1764677563169,0.00022,87598.0,87597.0,0.23981832]
[1764677565517,0.00022,87598.0,87597.0,0.22831832]
[1764677565718,0.00022,87598.0,87597.0,0.002]
[1764677565922,0.00022,87598.0,87597.0,0.003]
[1764677565923,0.22853571,87598.0,87597.0,0.003]
[1764677566122,0.24426571,87598.0,87597.0,0.003]
[1764677566454,0.26842571,87598.0,87597.0,0.002]
[1764677566648,0.26842763,87598.0,87595.0,0.22832119]
[1764677566853,0.01595,87598.0,87597.0,0.22831832]
[1764677567053,0.01141604,87596.0,87593.0,0.0001147]
[1764677567242,0.22832412,87595.0,87593.0,0.0001147]
[1764677567827,0.00022,87598.0,87593.0,0.0001147]
[1764677568073,0.22832214,87596.0,87593.0,0.22844336]
[1764677569194,0.23973505,87597.0,87594.0,0.22832383]
[1764677569408,0.22832369,87595.0,87593.0,0.0001147]
[1764677569627,0.23973747,87596.0,87593.0,0.22844276]
[1764677570230,0.22832419,87595.0,87593.0,0.0001147]
[1764677570379,0.22832419,87595.0,87593.0,0.22844261]
[1764677572349,0.22832419,87595.0,87593.0,0.0011147]
[1764677572976,0.22832614,87594.0,87593.0,0.0011147]
[1764677574155,0.22832614,87594.0,87593.0,0.0001147]
[1764677574591,0.22832614,87594.0,87593.0,0.0011147]
[1764677575764,0.3539662,87594.0,87593.0,0.0011147]
[1764677577423,0.3539662,87594.0,87593.0,0.0001147]
[1764677579379,0.08575006,87594.0,87593.0,0.0001147]
[1764677579707,0.3298062,87594.0,87593.0,0.0001147]
[1764677581409,0.3539662,87594.0,87593.0,0.0001147]
[1764677584156,0.3298062,87594.0,87593.0,0.0001147]
[1764677584347,0.3140762,87594.0,87593.0,0.0116147]
[1764677584900,0.3140762,87594.0,87593.0,0.0001147]
[1764677586625,0.3380762,87594.0,87593.0,0.0001147]
[1764677586857,0.3742362,87594.0,87593.0,0.0001147]
[1764677589218,0.3380762,87594.0,87593.0,0.0001147]
[1764677593292,0.3742362,87594.0,87593.0,0.0001147]
[1764677597140,0.3380762,87594.0,87593.0,0.0001147]
[1764677597727,0.3742362,87594.0,87593.0,0.0001147]
[1764677602477,0.3911762,87594.0,87593.0,0.0001147]
[1764677605519,0.41586714,87594.0,87593.0,0.0001147]
[1764677606181,0.73886714,87594.0,87593.0,0.0001147]
[1764677606383,0.75035517,87594.0,87593.0,0.0001147]
[1764677606577,2.75035517,87594.0,87593.0,0.0001147]
[1764677606780,2.81387816,87594.0,87593.0,0.0001147]
[1764677606978,2.81287816,87594.0,87593.0,0.0001147]
[1764677607383,2.81587816,87594.0,87593.0,0.0001147]
[1764677608700,2.81287816,87594.0,87593.0,0.0001147]
[1764677608905,2.81387816,87594.0,87593.0,0.0001147]
[1764677609088,2.80739013,87594.0,87593.0,0.0001147]
[1764677609294,2.83821045,87594.0,87593.0,0.0001147]
[1764677610232,2.80739013,87594.0,87593.0,0.0001147]
[1764677611520,2.82543013,87594.0,87593.0,0.0001147]
[1764677611695,2.42186714,87594.0,87593.0,0.0001147]
[1764677611902,2.3971762,87594.0,87593.0,0.0001147]
[1764677612103,2.3961762,87594.0,87593.0,0.0001147]
[1764677612485,2.3921762,87594.0,87593.0,0.0001147]
[1764677612915,2.3961762,87594.0,87593.0,0.0001147]
[1764677613244,2.3560162,87594.0,87593.0,0.0001147]
[1764677613439,2.3580162,87594.0,87593.0,0.0001147]
[1764677613634,2.3918162,87594.0,87593.0,0.0001147]
[1764677615236,0.3918162,87594.0,87593.0,0.0001147]
[1764677616185,0.3330162,87594.0,87593.0,0.0001147]
[1764677616348,0.3330162,87594.0,87593.0,0.0045547]
[1764677618471,0.24726614,87594.0,87593.0,0.0045547]
[1764677618673,0.23032614,87594.0,87593.0,0.0160547]
[1764677618874,0.08775006,87594.0,87593.0,0.0160547]
[1764677619062,0.3160762,87594.0,87593.0,0.0160547]
[1764677619462,0.002,87594.0,87593.0,0.23288344]
[1764677619667,0.002,87594.0,87593.0,0.24438344]
[1764677621699,0.22830822,87601.0,87598.0,0.01141578]
[1764677621896,0.23972361,87601.0,87598.0,0.23972982]
[1764677622457,0.01141552,87600.0,87595.0,0.0115]
[1764677622657,0.23973159,87598.0,87595.0,0.25123754]
[1764677622858,0.01141578,87598.0,87596.0,0.22832062]
[1764677623382,0.22831533,87599.0,87596.0,0.23973666]
[1764677623845,0.001,87598.0,87596.0,0.23973666]
[1764677624562,0.001,87598.0,87597.0,0.22831832]
[1764677625100,0.01141526,87602.0,87598.0,0.23972907]
[1764677625304,0.23971526,87604.0,87599.0,0.23972625]
[1764677625513,0.22830435,87603.0,87600.0,0.22830892]
[1764677625923,0.23971948,87603.0,87600.0,0.22830892]
[1764677626543,0.23972251,87602.0,87597.0,0.23973215]
[1764677626778,0.22831013,87601.0,87598.0,0.2283153]
[1764677627318,0.22831013,87601.0,87599.0,0.22831236]
[1764677627672,0.23972602,87600.0,87596.0,0.01141604]
[1764677627842,0.23972602,87600.0,87597.0,0.01141591]
[1764677628759,0.23972602,87600.0,87596.0,0.01141604]
[1764677629184,0.01141565,87599.0,87595.0,0.0115]
[1764677629385,0.23973696,87596.0,87593.0,0.0045547]
[1764677629586,0.22832561,87595.0,87593.0,0.0045547]
[1764677629783,0.25088614,87594.0,87593.0,0.0045547]
[1764677629988,0.28430614,87594.0,87593.0,0.0045547]
[1764677630403,0.02256,87594.0,87593.0,0.0045547]
[1764677630778,0.22832614,87594.0,87593.0,0.0045547]
[1764677631805,0.22932614,87594.0,87593.0,0.0045547]
[1764677636118,0.25188614,87594.0,87593.0,0.0045547]
[1764677639446,0.26853614,87594.0,87593.0,0.0045547]
[1764677640232,0.30195614,87594.0,87593.0,0.0045547]
[1764677643654,0.26853614,87594.0,87593.0,0.0045547]
[1764677644630,0.3877062,87594.0,87593.0,0.0045547]
[1764677651056,2.73537349,87594.0,87593.0,4.7e-06]
[1764677651333,0.01142074,87560.0,87555.0,0.01142139]
[1764677651593,0.01147316,87560.0,87552.0,0.08383683]
[1764677651762,0.01142178,87552.0,87549.0,0.0115]
[1764677651917,0.23986035,87551.0,87548.0,0.01804]
[1764677652118,0.02166,87549.0,87546.0,0.01142256]
[1764677652319,0.03743,87547.0,87542.0,0.01142308]
[1764677652545,0.03743,87547.0,87540.0,0.24650676]
[1764677652546,0.01142295,87543.0,87540.0,0.01804]
[1764677652750,0.23987772,87545.0,87540.0,0.01142334]
[1764677652951,0.23987772,87545.0,87542.0,0.22846146]
[1764677652952,0.0308,87544.0,87542.0,0.22846146]
[1764677653513,0.01577,87547.0,87544.0,0.22845612]
[1764677653696,0.04657,87547.0,87544.0,0.23987894]
[1764677654056,0.04657,87547.0,87543.0,0.01142295]
[1764677654057,0.02166,87545.0,87543.0,0.23988134]
[1764677654264,0.02166,87544.0,87543.0,0.23988134]
[1764677655367,0.02166,87544.0,87543.0,0.24088134]
[1764677655564,0.02166,87544.0,87543.0,0.23988134]
[1764677655764,0.02108,87544.0,87543.0,0.23988134]
[1764677655990,0.02108,87544.0,87543.0,0.24088134]
[1764677656507,0.01577,87547.0,87545.0,0.22845393]
[1764677657052,0.09717197,87551.0,87548.0,0.22844547]
[1764677657264,0.09717197,87551.0,87548.0,0.23986777]
[1764677658119,0.32561049,87551.0,87548.0,0.23986777]
[1764677659142,0.22844115,87550.0,87548.0,0.23986777]
[1764677659501,0.09717197,87551.0,87548.0,0.0114223]
[1764677659835,0.22844131,87550.0,87548.0,0.0114223]
[1764677660042,0.32561233,87551.0,87548.0,0.23986806]
[1764677660886,0.32561233,87551.0,87548.0,0.23986707]
[1764677661124,0.08575006,87551.0,87549.0,0.22844252]
[1764677661362,0.08575006,87551.0,87550.0,0.22844089]
[1764677661535,0.08575006,87551.0,87549.0,0.22844252]
[1764677662153,0.08575006,87551.0,87550.0,0.22844089]
[1764677662576,0.10152006,87551.0,87550.0,0.22844089]
[1764677663268,0.08575006,87551.0,87550.0,0.23994089]
[1764677663814,0.08575006,87551.0,87549.0,0.22844252]
[1764677664044,0.10152006,87551.0,87550.0,0.22844089]
[1764677664236,0.10152006,87551.0,87550.0,0.0115]
[1764677664436,0.32995834,87551.0,87550.0,0.0115]
[1764677664641,0.22844767,87548.0,87545.0,0.22845383]
[1764677664879,0.22844988,87547.0,87545.0,0.01142269]
[1764677665018,0.23986997,87548.0,87545.0,0.23987598]
[1764677665394,0.22845166,87546.0,87544.0,0.0115]
[1764677665563,0.22845166,87546.0,87542.0,0.23988475]
[1764677665564,0.03743,87545.0,87542.0,0.23988231]
[1764677665765,0.02166,87543.0,87542.0,0.23988231]
[1764677666424,0.01577,87545.0,87544.0,0.23995654]
[1764677666823,0.03743,87545.0,87544.0,0.22845654]
[1764677667066,0.01577,87545.0,87544.0,0.22845654]
[1764677667618,0.01577,87545.0,87544.0,0.22945654]
[1764677670823,0.06823,87545.0,87544.0,0.22945654]
[1764677671128,0.03743,87545.0,87544.0,0.22945654]
[1764677671293,0.01577,87545.0,87544.0,0.22945654]
[1764677672082,0.10152006,87551.0,87549.0,0.22844173]
[1764677674090,0.13322006,87551.0,87549.0,0.22844173]
[1764677675143,0.10152006,87551.0,87549.0,0.22844173]
[1764677675542,0.10152006,87551.0,87550.0,0.22844089]
[1764677675769,0.10152006,87551.0,87549.0,0.22844173]
[1764677676099,0.10152006,87551.0,87550.0,0.22844089]
[1764677676431,0.32996033,87551.0,87548.0,0.23986645]
[1764677676665,0.36009033,87551.0,87548.0,0.23986645]
[1764677676829,0.23986515,87550.0,87545.0,0.23987409]
[1764677677036,0.2284454,87549.0,87546.0,0.22845061]
[1764677677237,0.22844681,87548.0,87545.0,0.01142269]
[1764677677444,0.22845393,87545.0,87535.0,0.011424]
[1764677677651,0.25977662,87545.0,87541.0,0.01142321]
[1764677677844,0.01584,87544.0,87542.0,0.22846135]
[1764677678221,0.04597,87544.0,87543.0,0.22845915]
[1764677678842,0.01584,87544.0,87543.0,0.22845915]
[1764677679385,0.06587,87544.0,87540.0,0.01142334]
[1764677679589,0.0199,87543.0,87541.0,0.22846214]
[1764677679737,0.03013,87543.0,87541.0,0.23988535]
[1764677679937,0.01584,87544.0,87542.0,0.22846124]
[1764677679938,0.02726282,87544.0,87542.0,0.22846124]
[1764677680140,0.02726282,87544.0,87543.0,0.001]
[1764677680383,0.02726282,87544.0,87542.0,0.22846124]
[1764677680584,0.01142217,87549.0,87544.0,0.01142282]
[1764677680877,0.22845061,87547.0,87544.0,0.01142282]
[1764677681027,0.22845212,87546.0,87545.0,0.0115]
[1764677681445,0.22845212,87546.0,87544.0,0.23987936]
[1764677681844,0.23987042,87548.0,87545.0,0.22845393]
[1764677682039,0.03013,87548.0,87546.0,0.2284503]
[1764677682242,0.03013,87548.0,87545.0,0.01142269]
[1764677682243,0.22842206,87558.0,87554.0,0.22842832]
[1764677682600,0.2803068,87559.0,87554.0,0.01142152]
[1764677682784,0.0459,87559.0,87556.0,0.23984614]
[1764677683035,0.01584,87557.0,87556.0,0.23984594]
[1764677683231,0.01584,87557.0,87555.0,0.0115]
[1764677683632,0.22842786,87555.0,87552.0,0.0115]
[1764677683842,0.01584,87551.0,87550.0,0.25793776]
[1764677685478,0.03013,87554.0,87550.0,0.25793776]
[1764677685479,0.02826113,87557.0,87555.0,0.2284273]
[1764677685683,0.02826113,87557.0,87556.0,0.22842523]
[1764677685684,0.001,87557.0,87556.0,0.22842523]
[1764677685903,0.02719087,87559.0,87557.0,0.23992254]
[1764677686235,0.02719087,87559.0,87557.0,0.0115]
[1764677686434,0.01584,87557.0,87556.0,0.23984649]
[1764677686961,0.01684,87557.0,87556.0,0.23984649]
[1764677687241,0.03674,87557.0,87556.0,0.23984649]
[1764677687571,0.06687,87557.0,87556.0,0.23984649]
[1764677688619,0.01684,87557.0,87556.0,0.23984649]
[1764677692673,0.001,87557.0,87556.0,0.23984649]
[1764677692877,0.001,87557.0,87556.0,0.25134649]
[1764677693078,5.242e-05,87560.0,87559.0,0.2284174]
[1764677693302,5.242e-05,87560.0,87559.0,0.2399174]
[1764677696498,5.242e-05,87560.0,87559.0,0.2409174]
[1764677708410,5.242e-05,87560.0,87559.0,0.0125]
[1764677708576,0.24683722,87560.0,87559.0,0.001]
[1764677708778,0.27634722,87560.0,87559.0,0.001]
[1764677710077,0.27634722,87560.0,87553.0,0.01142165]
[1764677710078,0.01142087,87559.0,87556.0,0.22842504]
[1764677710279,0.01842242,87560.0,87557.0,0.0115]
[1764677710549,0.22841935,87559.0,87557.0,0.0115]
[1764677710869,0.22841935,87559.0,87557.0,0.23992206]
[1764677711200,0.23988814,87560.0,87557.0,0.23992206]
[1764677712376,0.23988814,87560.0,87558.0,0.22841982]
[1764677712602,5.242e-05,87560.0,87559.0,0.2399174]
[1764677713703,5.242e-05,87560.0,87559.0,0.2409174]
[1764677715643,5.242e-05,87560.0,87559.0,0.2429174]
[1764677715841,0.04793242,87560.0,87559.0,0.003]
[1764677716052,0.27634722,87560.0,87559.0,0.003]
[1764677716765,0.27634722,87560.0,87547.0,0.01804]
[1764677716989,0.27634722,87560.0,87538.0,0.01142361]
[1764677716990,0.01142321,87541.0,87538.0,0.0115]
[1764677717149,0.22846959,87539.0,87538.0,0.01804]
[1764677717354,0.24683959,87539.0,87538.0,0.01804]
[1764677717577,0.01837,87539.0,87538.0,0.01804]
[1764677717828,0.01518,87543.0,87538.0,0.02946361]
[1764677718032,0.23987404,87546.0,87542.0,0.01142308]
[1764677718240,0.23988727,87542.0,87538.0,0.01804]
[1764677718875,0.01142308,87542.0,87539.0,0.23989306]
[1764677719300,0.23987979,87544.0,87541.0,0.22846417]
[1764677719465,0.23987979,87544.0,87539.0,0.01142347]
[1764677719688,0.01142282,87544.0,87540.0,0.23988819]
[1764677719895,0.23987701,87545.0,87541.0,0.01142321]
[1764677720086,0.23987701,87545.0,87541.0,0.239886]
[1764677720296,0.01142243,87547.0,87544.0,0.0115]
[1764677720734,0.22845139,87546.0,87544.0,0.0115]
[1764677720940,0.22845393,87545.0,87544.0,0.0115]
[1764677722568,0.22845139,87546.0,87544.0,0.0115]
[1764677724149,0.22845393,87545.0,87544.0,0.0115]
[1764677724752,0.22845759,87544.0,87540.0,0.23989026]
[1764677724998,0.23988429,87543.0,87539.0,0.0115]
[1764677725143,0.22846419,87542.0,87539.0,0.0115]
[1764677726115,0.22846419,87542.0,87540.0,0.001]
[1764677726116,0.27315437,87541.0,87540.0,0.001]
[1764677726303,0.22846932,87540.0,87538.0,0.01804]
[1764677726478,0.24683959,87539.0,87538.0,0.01804]
[1764677726801,0.01837,87539.0,87538.0,0.01804]
[1764677728599,0.24683959,87539.0,87538.0,0.01804]
[1764677728779,0.24683959,87539.0,87538.0,0.01904]
[1764677731659,0.01837,87539.0,87538.0,0.2475122]
[1764677731824,0.25506843,87541.0,87538.0,0.2475122]
[1764677732030,0.25506843,87541.0,87539.0,0.22846934]
[1764677732251,0.01518,87541.0,87539.0,0.22846934]
[1764677732567,0.01518,87541.0,87540.0,0.22846698]
[1764677732938,0.02660321,87541.0,87538.0,0.25893461]
[1764677733335,0.22846698,87540.0,87538.0,0.25793461]
[1764677733558,0.22846698,87540.0,87538.0,0.02946361]
[1764677733762,0.22846698,87540.0,87538.0,0.01804]
[1764677733962,0.2550681,87541.0,87538.0,0.01804]
[1764677734370,0.2550681,87541.0,87538.0,0.24651039]
[1764677734838,0.01518,87541.0,87540.0,0.22846698]
[1764677735510,0.04186,87548.0,87543.0,0.01142295]
[1764677735710,0.22844878,87547.0,87544.0,0.23987936]
[1764677735872,0.22844878,87547.0,87545.0,0.0115]
[1764677736061,0.22845064,87547.0,87545.0,0.0115]
[1764677736258,0.25505037,87548.0,87545.0,0.0115]
[1764677736508,0.22844875,87547.0,87545.0,0.23995318]
[1764677736728,0.01518,87548.0,87546.0,0.22844943]
[1764677736863,0.01142282,87544.0,87541.0,0.01142321]
[1764677737064,0.23987732,87545.0,87543.0,0.22845915]
[1764677737982,0.23987732,87545.0,87542.0,0.23988038]
[1764677739025,0.2398745,87546.0,87543.0,0.23987992]
[1764677739200,0.01142256,87546.0,87544.0,0.22845467]
[1764677740019,0.23987375,87547.0,87545.0,0.22845393]
[1764677740615,0.23987375,87547.0,87544.0,0.23987934]
[1764677740851,0.26882375,87547.0,87544.0,0.23987934]
[1764677741195,0.26882375,87547.0,87545.0,0.22845308]
[1764677741909,0.26882375,87547.0,87543.0,0.23987992]
[1764677742109,0.04037243,87547.0,87545.0,0.2284536]
[1764677742328,0.02895,87547.0,87545.0,0.22845393]
[1764677742735,0.02895,87547.0,87546.0,0.22845132]
[1764677743100,0.02895,87547.0,87545.0,0.22845393]
[1764677744432,0.25739904,87547.0,87545.0,0.22845393]
[1764677744631,0.25739904,87547.0,87544.0,0.23987417]
[1764677745218,0.22845224,87546.0,87544.0,0.23987417]
[1764677745835,0.22845393,87545.0,87542.0,0.23988461]
[1764677746028,0.22845393,87545.0,87543.0,0.22845836]
[1764677746237,0.22845723,87544.0,87540.0,0.01142334]
[1764677746522,0.22845723,87544.0,87541.0,0.23988567]
[1764677746523,0.25740723,87544.0,87541.0,0.23988567]
[1764677746748,0.22845723,87544.0,87542.0,0.22846143]
[1764677747107,0.23987942,87544.0,87540.0,0.01142334]
[1764677747308,0.23987942,87544.0,87541.0,0.22846234]
[1764677747744,0.26882942,87544.0,87541.0,0.22846234]
[1764677747948,0.01939,87542.0,87540.0,0.23988836]
[1764677748249,0.01939,87542.0,87541.0,0.22846437]
[1764677748442,0.23987942,87544.0,87542.0,0.22846156]
[1764677748663,0.23987942,87544.0,87541.0,0.22846437]
[1764677748879,0.22845477,87545.0,87543.0,0.22845691]
[1764677749081,0.2398748,87546.0,87543.0,0.22845691]
[1764677749245,0.01367,87544.0,87542.0,0.23988417]
[1764677749739,0.01367,87544.0,87543.0,0.22845915]
[1764677749961,0.01518,87548.0,87545.0,0.01142269]
[1764677750194,0.0266023,87548.0,87545.0,0.23987475]
[1764677750444,0.28400023,87548.0,87545.0,0.23987475]
[1764677750655,0.09717197,87551.0,87546.0,0.01142256]
[1764677750862,0.22844588,87549.0,87546.0,0.23987341]
[1764677751036,0.22844588,87549.0,87547.0,0.22844829]
[1764677751175,0.22844624,87548.0,87546.0,0.23987341]
[1764677751378,0.22844624,87548.0,87547.0,0.0115]
[1764677751600,0.23986805,87549.0,87548.0,0.0115]
[1764677752055,0.23986896,87548.0,87545.0,0.25137654]
[1764677752436,0.23986896,87548.0,87545.0,0.23987654]
[1764677752637,0.01939,87546.0,87544.0,0.2284547]
[1764677752941,0.01367,87545.0,87544.0,0.2284547]
[1764677753141,0.01367,87545.0,87544.0,0.2399547]
[1764677756013,0.2284435,87549.0,87547.0,0.23987103]
[1764677756218,0.2284435,87549.0,87547.0,0.01142243]
[1764677756747,0.23986468,87550.0,87547.0,0.23987106]
[1764677757099,0.22844416,87549.0,87547.0,0.23987106]
[1764677757305,0.26881468,87550.0,87548.0,0.22844561]
[1764677757758,0.26881468,87550.0,87547.0,0.23987106]
[1764677757923,0.22844469,87549.0,87547.0,0.23987106]
[1764677759180,0.22844469,87549.0,87547.0,0.01142243]
[1764677759532,0.22844469,87549.0,87546.0,0.22845049]
[1764677759943,0.22844708,87548.0,87546.0,0.22845049]
[1764677760144,0.22844885,87547.0,87545.0,0.23987584]
[1764677760497,0.22844708,87548.0,87545.0,0.23987584]
[1764677760661,0.2398657,87549.0,87545.0,0.23987584]
[1764677760863,0.2398657,87549.0,87546.0,0.22845074]
[1764677761431,0.2398657,87549.0,87547.0,0.22844819]
[1764677761785,0.01142217,87549.0,87547.0,0.22844819]
[1764677762466,0.01518,87552.0,87547.0,0.23994871]
[1764677762632,0.01142152,87554.0,87551.0,0.0115]
[1764677762831,0.01142152,87554.0,87543.0,0.0115]
[1764677762832,0.01142204,87550.0,87543.0,0.0115]
[1764677763072,0.01142308,87542.0,87537.0,0.00241569]
[1764677763271,0.2615322,87538.0,87537.0,0.00241569]
[1764677763649,0.2904822,87538.0,87537.0,0.00241569]
[1764677764234,0.06201,87538.0,87537.0,0.00241569]
[1764677764434,0.06201,87538.0,87537.0,0.2308905]
[1764677764653,0.2904822,87538.0,87537.0,0.00241569]
[1764677765144,0.2904822,87538.0,87537.0,0.00441569]
[1764677765860,0.2904822,87538.0,87537.0,0.00241569]
[1764677766348,0.2914822,87538.0,87537.0,0.00241569]
[1764677766890,0.3161635,87538.0,87537.0,0.00241569]
[1764677767332,0.2914822,87538.0,87537.0,0.00241569]
[1764677767644,0.2904822,87538.0,87537.0,0.00241569]
[1764677767824,0.2924822,87538.0,87537.0,0.00241569]
[1764677768156,0.2934822,87538.0,87537.0,0.00241569]
[1764677770234,0.06501,87538.0,87537.0,0.00241569]
[1764677770889,0.01667,87538.0,87537.0,0.2308905]
[1764677771038,0.04021,87544.0,87537.0,0.2308905]
[1764677771039,0.01367,87544.0,87543.0,0.22845915]
[1764677771671,0.0307,87544.0,87543.0,0.22845915]
[1764677772075,0.22844819,87547.0,87545.0,0.22845393]
[1764677772281,0.22844819,87547.0,87546.0,0.22845132]
[1764677772918,0.22844819,87547.0,87546.0,0.23995132]
[1764677773104,5.242e-05,87560.0,87559.0,0.2284174]
[1764677777625,5.242e-05,87560.0,87559.0,0.2399174]
[1764677778563,5.242e-05,87560.0,87559.0,0.2409174]
[1764677781669,5.242e-05,87560.0,87559.0,0.2294174]
[1764677787898,5.242e-05,87560.0,87559.0,0.25225914]
[1764677788097,5.242e-05,87560.0,87559.0,0.2294174]
[1764677788830,0.01356,87562.0,87561.0,0.22841219]